bitfinex/quotes_SOLUSD_20250414
["timestamp","ask_amount","ask_price","bid_price","bid_amount"]
[1744656746259,16.61613385,129.81,129.8,0.063]
[1744656746451,16.61613385,129.82,129.8,0.063]
[1744656747465,27.75613385,129.83,129.8,0.063]
[1744656750372,16.61613385,129.81,129.8,0.063]
[1744656750674,11.14,129.83,129.8,0.063]
[1744656750889,16.61613385,129.82,129.8,0.063]
[1744656751460,27.75613385,129.83,129.8,0.063]
[1744656753174,35.45843385,129.83,129.8,0.063]
[1744656753980,16.61613385,129.82,129.8,0.063]
[1744656755477,27.75613385,129.83,129.8,0.063]
[1744656755878,16.61613385,129.82,129.8,0.063]
[1744656757279,27.75613385,129.83,129.8,0.063]
[1744656757477,16.61613385,129.85,129.8,16.67913385]
[1744656757778,16.61613385,129.86,129.81,16.61613385]
[1744656758475,16.61613385,129.85,129.8,16.67913385]
[1744656758876,16.61613385,129.86,129.81,24.31963385]
[1744656760192,11.14,129.87,129.83,16.61613385]
[1744656760497,11.14,129.92,129.86,16.61613385]
[1744656760659,11.14,129.92,129.89,16.61613385]
[1744656760863,16.67913385,129.94,129.9,16.61613385]
[1744656761764,0.063,129.94,129.91,16.61613385]
[1744656761978,0.063,129.94,129.93,16.61613385]
[1744656762857,0.063,129.94,129.93,24.31253385]
[1744656767192,0.063,129.94,129.93,7.6964]
[1744656768992,0.063,129.94,129.92,7.6967]
[1744656769313,0.063,129.94,129.93,16.61613385]
[1744656770400,0.063,129.94,129.93,24.31253385]
[1744656772224,0.063,129.94,129.93,25.91873385]
[1744656773801,0.063,129.94,129.93,44.85270585]
[1744656774506,0.0001,129.94,129.93,44.85270585]
[1744656777106,0.0001,129.94,129.93,127.85270585]
[1744656779599,0.03,129.96,129.94,18.933972]
[1744656779808,0.03,129.98,129.97,16.61613385]
[1744656780903,0.03,129.98,129.94,18.933972]
[1744656781097,0.03,129.98,129.97,16.61613385]
[1744656781296,0.03,129.98,129.97,24.31013385]
[1744656787201,0.03,129.98,129.97,18.29273086]
[1744656789145,0.03,129.99,129.98,19.21829514]
[1744656789303,0.03,130.05,130.01,26.0]
[1744656789607,0.03,130.05,130.04,10.59873086]
[1744656789812,0.03,130.05,130.0,7.6923]
[1744656790115,10.62873086,130.05,130.0,10.59873086]
[1744656790322,10.59873086,130.04,130.0,10.59873086]
[1744656790910,10.59873086,130.02,129.98,10.59873086]
[1744656791109,10.59873086,130.0,129.96,18.29303086]
[1744656791320,10.59873086,129.99,129.95,7.695]
[1744656791502,10.59873086,129.99,129.95,18.29373086]
[1744656791697,10.59873086,129.98,129.94,10.59873086]
[1744656791904,10.59873086,129.98,129.94,18.29433086]
[1744656793219,16.5689227,129.98,129.94,24.2645227]
[1744656794014,16.5689227,129.97,129.93,83.0]
[1744656794217,16.5689227,129.97,129.93,107.2652227]
[1744656794433,16.5689227,129.97,129.93,24.2652227]
[1744656795011,24.2625227,129.98,129.93,24.2652227]
[1744656795921,9.3133,129.99,129.93,24.2652227]
[1744656796120,16.5689227,129.98,129.93,24.2652227]
[1744656796726,16.5689227,129.98,129.93,7.6963]
[1744656796923,16.5689227,129.98,129.93,24.2652227]
[1744656797122,16.5689227,129.96,129.92,24.2654227]
[1744656797317,16.5689227,129.96,129.91,24.2665227]
[1744656797519,16.5689227,129.95,129.91,24.2665227]
[1744656797927,16.5689227,129.96,129.91,24.2665227]
[1744656798227,16.5689227,129.95,129.91,24.2665227]
[1744656798427,16.5689227,129.95,129.91,7.6976]
[1744656798806,16.5689227,129.95,129.9,0.063]
[1744656799024,16.5689227,129.93,129.9,0.063]
[1744656799230,16.5689227,129.95,129.9,16.6319227]
[1744656799524,7.6948,129.96,129.92,16.5689227]
[1744656799525,11.12,129.96,129.92,16.5689227]
[1744656799923,6.498,129.98,129.93,16.5689227]
[1744656800110,30.7604227,129.98,129.93,16.5689227]
[1744656800733,23.0669227,129.98,129.93,16.5689227]
[1744656800932,23.0669227,129.98,129.94,7.6958]
[1744656801119,6.498,129.98,129.94,24.2647227]
[1744656801320,30.7604227,129.98,129.93,24.2650227]
[1744656801515,16.5689227,129.97,129.93,24.2650227]
[1744656802526,23.0669227,129.98,129.93,24.2650227]
[1744656804235,16.5689227,129.96,129.92,7.6967]
[1744656804420,16.5689227,129.95,129.92,7.6967]
[1744656804612,16.5689227,129.95,129.91,7.6973]
[1744656804812,16.5689227,129.94,129.9,90.7609]
[1744656805029,16.5689227,129.94,129.9,7.7609]
[1744656805531,16.5689227,129.95,129.9,24.3298227]
[1744656805917,16.5689227,129.94,129.9,24.3298227]
[1744656806229,16.5689227,129.95,129.9,24.3298227]
[1744656807022,24.2642227,129.95,129.9,24.3298227]
[1744656807224,16.5689227,129.95,129.9,24.3298227]
[1744656810035,16.5689227,129.95,129.92,7.697]
[1744656811436,6.498,129.98,129.93,16.5689227]
[1744656811616,6.498,129.98,129.94,16.5689227]
[1744656812224,25.8822227,129.99,129.94,16.5689227]
[1744656812627,25.8822227,129.99,129.95,7.6952]
[1744656812840,24.2620227,129.99,129.95,7.6952]
[1744656813019,16.5689227,129.99,129.95,7.6952]
[1744656813227,10.60337626,129.99,129.95,7.6952]
[1744656813741,10.60337626,129.98,129.94,18.29897626]
[1744656814122,10.60337626,129.98,129.91,7.6976]
[1744656814123,10.60337626,129.96,129.91,7.6976]
[1744656814325,10.60337626,129.96,129.91,18.30097626]
[1744656815142,16.57497856,129.96,129.91,24.27257856]
[1744656816141,24.26957856,129.96,129.91,24.27257856]
[1744656816441,16.57497856,129.96,129.91,24.27257856]
[1744656821448,16.57497856,129.94,129.9,108.93127856]
[1744656821832,16.57497856,129.95,129.9,108.93127856]
[1744656822046,16.57497856,129.94,129.9,92.3563]
[1744656822421,16.57497856,129.94,129.9,108.93127856]
[1744656822945,16.57497856,129.95,129.9,108.93127856]
[1744656823654,16.57497856,129.97,129.92,16.57497856]
[1744656823837,18.64964886,129.99,129.93,16.57497856]
[1744656823838,16.57497856,129.98,129.93,16.57497856]
[1744656824843,16.57497856,129.98,129.94,7.6958]
[1744656825042,16.57497856,129.99,129.94,24.27077856]
[1744656825254,24.26787856,129.99,129.94,24.27077856]
[1744656825930,16.57497856,129.98,129.94,7.6958]
[1744656826549,18.95466157,130.0,129.94,24.27077856]
[1744656826753,16.57497856,129.98,129.94,24.27077856]
[1744656826932,16.57497856,129.98,129.94,7.6958]
[1744656827539,16.57497856,129.98,129.94,24.27077856]
[1744656827740,16.57497856,129.97,129.92,24.27197856]
[1744656827935,16.57497856,129.95,129.92,7.697]
[1744656828353,7.6935,129.98,129.92,7.697]
[1744656828653,16.57497856,129.96,129.92,7.697]
[1744656829654,16.57497856,129.95,129.92,7.697]
[1744656829834,16.57497856,129.94,129.9,9.3566]
[1744656830436,16.57497856,129.95,129.9,25.93157856]
[1744656830758,16.57497856,129.96,129.91,16.57497856]
[1744656831459,16.57497856,129.96,129.92,7.697]
[1744656832045,16.57497856,129.95,129.92,7.697]
[1744656832449,16.57497856,129.97,129.92,24.27197856]
[1744656832945,16.57497856,129.96,129.92,24.27197856]
[1744656834739,16.57497856,129.96,129.92,7.697]
[1744656835255,10.60762414,129.96,129.92,7.697]
[1744656836346,10.60762414,129.97,129.92,10.60762414]
[1744656838872,10.60762414,129.97,129.93,7.6964]
[1744656842050,18.30172414,129.97,129.92,7.6967]
[1744656842250,18.30172414,129.97,129.92,18.30432414]
[1744656842673,10.60762414,129.98,129.93,10.60762414]
[1744656842845,10.60762414,129.99,129.94,10.60762414]
[1744656843261,18.30052414,129.99,129.95,7.6952]
[1744656844789,11.12,130.0,129.96,10.60762414]
[1744656846654,10.60762414,130.03,129.98,18.30102414]
[1744656847178,10.60762414,130.03,129.99,2.80736366]
[1744656847889,10.60762414,130.03,129.99,10.49966366]
[1744656848059,10.60762414,130.03,129.99,7.6923]
[1744656848382,21.70762414,130.04,129.99,18.29992414]
[1744656848673,21.70762414,130.04,130.0,10.60762414]
[1744656848852,0.03,130.05,130.0,10.60762414]
[1744656849056,0.03,130.05,130.02,10.60762414]
[1744656850176,0.03,130.05,130.01,1.6413]
[1744656850177,0.03,130.05,130.03,18.29812414]
[1744656850368,0.03,130.05,130.04,10.60762414]
[1744656850562,0.03,130.05,130.01,84.6413]
[1744656850563,10.63762414,130.05,130.01,1.6413]
[1744656850777,10.60762414,130.03,129.99,90.6926]
[1744656851093,10.60762414,130.04,129.99,18.30022414]
[1744656851879,7.7198,130.05,129.99,18.30022414]
[1744656852081,10.60762414,130.04,129.99,18.30022414]
[1744656852671,0.03,130.05,130.0,10.60762414]
[1744656853263,10.63762414,130.05,130.01,10.60762414]
[1744656853466,18.32702414,130.05,130.0,10.60762414]
[1744656854877,10.63762414,130.05,130.01,7.6917]
[1744656856965,18.32702414,130.05,130.0,7.692]
[1744656857166,10.60762414,130.04,130.0,7.692]
[1744656858891,10.60762414,130.04,130.0,10.60762414]
[1744656859470,10.60762414,130.04,129.99,18.30042414]
[1744656859870,10.60762414,130.03,129.99,18.30042414]
[1744656860387,10.60762414,130.02,129.98,19.95292414]
[1744656860594,10.60762414,130.03,129.98,19.95292414]
[1744656862000,18.29822414,130.03,129.98,19.95292414]
[1744656862496,10.60762414,130.03,129.98,19.95292414]
[1744656863493,10.60762414,130.03,129.99,10.60762414]
[1744656865096,10.60762414,130.04,130.0,10.60762414]
[1744656865474,10.60762414,130.04,130.0,18.29942414]
[1744656866096,0.03,130.05,130.0,18.29942414]
[1744656866277,0.03,130.05,130.02,10.60762414]
[1744656867571,0.03,130.05,130.03,7.6905]
[1744656868295,10.60762414,130.04,130.0,10.60762414]
[1744656868777,10.63762414,130.05,130.0,10.60762414]
[1744656869706,10.60762414,130.04,129.99,18.30042414]
[1744656870377,10.63762414,130.05,130.0,10.60762414]
[1744656870694,10.60762414,130.04,129.99,18.30042414]
[1744656871311,10.60762414,130.04,130.0,10.60762414]
[1744656871800,10.60762414,130.04,130.01,7.6917]
[1744656872596,18.32702414,130.05,130.01,7.6917]
[1744656873301,10.60762414,130.04,130.01,7.6917]
[1744656873497,10.63762414,130.05,130.01,7.6917]
[1744656873886,10.63762414,130.05,130.01,18.29932414]
[1744656874088,0.03,130.05,130.01,18.29932414]
[1744656874798,10.63762414,130.05,130.01,18.29932414]
[1744656876198,0.03,130.05,130.01,18.29932414]
[1744656876781,0.03,130.05,130.02,10.60762414]
[1744656877197,0.03,130.05,130.01,18.29932414]
[1744656877404,10.63762414,130.05,130.01,18.29932414]
[1744656878407,0.03,130.05,130.01,18.29932414]
[1744656880305,10.63762414,130.05,130.01,18.29932414]
[1744656881305,10.60762414,130.03,130.0,90.692]
[1744656882209,10.63762414,130.05,130.0,101.29962414]
[1744656882600,0.03,130.05,130.0,101.29962414]
[1744656883005,0.03,130.05,130.01,10.60762414]
[1744656884610,0.03,130.05,130.02,7.6911]
[1744656887904,0.03,130.05,130.04,10.60762414]
[1744656888107,0.03,130.05,130.04,93.60762414]
[1744656888700,0.03,130.05,130.04,101.29752414]
[1744656889919,0.03,130.05,130.04,104.09894752]
[1744656890997,0.03,130.05,130.04,93.49132338]
[1744656892720,0.03,130.05,130.04,85.80142338]
[1744656893217,0.03,130.05,130.04,93.49132338]
[1744656893896,0.03,130.05,130.04,90.6899]
[1744656894920,0.03,130.05,130.04,83.0]
[1744656895623,0.03,130.05,130.04,90.6899]
[1744656897520,0.03,130.05,130.03,7.6903]
[1744656898609,0.03,130.05,130.02,90.6908]
[1744656898924,0.03,130.05,130.03,2.80357363]
[1744656899301,10.63762414,130.05,130.03,2.80357363]
[1744656899503,10.60762414,130.04,130.03,2.80357363]
[1744656900426,10.60762414,130.04,129.98,95.25972414]
[1744656900620,10.60762414,130.03,129.98,95.25972414]
[1744656901023,10.60762414,130.03,129.99,7.6928]
[1744656901832,0.03,130.05,130.01,10.60762414]
[1744656902211,0.03,130.05,130.02,10.60762414]
[1744656902417,0.03,130.05,130.03,10.60762414]
[1744656903007,0.03,130.05,130.04,7.6899]
[1744656910214,10.63762414,130.05,130.03,83.0]
[1744656910410,10.60762414,130.04,129.98,7.6931]
[1744656910614,10.60762414,129.99,129.96,7.6944]
[1744656911021,10.60762414,130.0,129.96,18.30202414]
[1744656911229,10.60762414,130.01,129.96,18.30202414]
[1744656911435,11.08,130.03,129.97,10.60762414]
[1744656911436,10.60762414,130.02,129.97,10.60762414]
[1744656911638,10.60762414,130.02,129.97,93.60762414]
[1744656911829,10.60762414,130.01,129.97,93.60762414]
[1744656912215,10.60762414,130.01,129.98,7.6934]
[1744656912837,10.60762414,130.0,129.98,7.6934]
[1744656913223,10.60762414,130.01,129.98,7.6934]
[1744656913431,10.60762414,130.0,129.97,90.6938]
[1744656914535,10.60762414,130.01,129.97,90.6938]
[1744656916141,10.60762414,130.0,129.97,83.0]
[1744656916341,10.60762414,129.98,129.97,83.0]
[1744656916525,10.60762414,130.0,129.96,18.30222414]
[1744656916950,10.60762414,129.99,129.96,7.6946]
[1744656917137,10.60762414,129.98,129.95,7.695]
[1744656919538,10.60762414,130.01,129.97,10.60762414]
[1744656919747,10.60762414,130.02,129.97,10.60762414]
[1744656920126,10.60762414,130.01,129.97,18.30112414]
[1744656920547,10.60762414,130.02,129.98,10.60762414]
[1744656921844,10.60762414,130.02,129.98,93.60762414]
[1744656922023,21.68762414,130.03,129.99,10.60762414]
[1744656922220,21.68762414,130.03,130.0,7.6923]
[1744656922425,7.7196,130.05,130.0,18.29992414]
[1744656922724,0.03,130.05,130.03,10.60762414]
[1744656924547,0.03,130.05,130.04,7.6899]
[1744656925046,0.03,130.05,130.04,18.29752414]
[1744656927149,0.03,130.05,130.04,24.22838608]
[1744656931143,0.03,130.05,130.04,107.22838608]
[1744656933330,0.03,130.05,130.04,126.44668122]
[1744656933726,0.03,130.05,130.04,107.22838608]
[1744656937551,0.03,130.07,130.06,0.28432314]
[1744656937735,0.03,130.07,130.06,118.75678122]
[1744656938352,0.0001,130.07,130.06,118.75678122]
[1744656938654,0.0001,130.07,130.06,120.40728122]
[1744656939339,0.0001,130.07,130.06,128.09598122]
[1744656940149,0.0001,130.07,130.06,134.23590538]
[1744656940354,0.03,130.11,130.09,26.0]
[1744656940549,26.93125249,130.15,130.1,16.53848608]
[1744656940755,26.93125249,130.15,130.11,16.53848608]
[1744656941256,10.39276641,130.15,130.11,16.53848608]
[1744656941561,10.39276641,130.15,130.12,7.6852]
[1744656942559,10.7191455,130.16,130.12,43.43668608]
[1744656942757,2.7137455,130.16,130.12,43.43668608]
[1744656942936,19.25223158,130.16,130.12,43.43668608]
[1744656943741,19.25223158,130.16,130.12,7.6852]
[1744656943956,16.53848608,130.15,130.12,7.6852]
[1744656944160,16.53848608,130.15,130.11,90.6856]
[1744656944363,16.53848608,130.13,130.11,90.6856]
[1744656944737,16.53848608,130.15,130.11,90.6856]
[1744656945445,16.53848608,130.15,130.11,107.22408608]
[1744656945747,19.25223158,130.16,130.11,107.22408608]
[1744656945954,16.53848608,130.15,130.11,107.22408608]
[1744656946149,19.25223158,130.16,130.11,107.22408608]
[1744656946340,2.7137455,130.16,130.12,16.53848608]
[1744656946851,16.53848608,130.14,130.11,90.6856]
[1744656947242,16.53848608,130.15,130.11,90.6856]
[1744656947440,16.53848608,130.15,130.11,107.22408608]
[1744656948171,2.7137455,130.16,130.11,107.22408608]
[1744656948362,19.25223158,130.16,130.11,107.22408608]
[1744656948752,2.7137455,130.16,130.12,16.53848608]
[1744656949263,2.7137455,130.16,130.12,10.5730573]
[1744656950370,2.7137455,130.16,130.13,7.6846]
[1744656953473,13.2868028,130.16,130.13,7.6846]
[1744656954672,2.7137455,130.16,130.13,7.6846]
[1744656958272,2.7137455,130.16,130.15,10.5730573]
[1744656958771,2.7137455,130.16,130.14,10.5730573]
[1744656960274,2.7137455,130.16,130.15,10.5730573]
[1744656962180,2.7137455,130.16,130.15,93.5730573]
[1744656962382,2.7137455,130.16,130.15,101.2564573]
[1744656963172,4.55e-05,130.16,130.15,120.47475244]
[1744656963571,4.55e-05,130.16,130.15,101.2564573]
[1744656964183,4.55e-05,130.16,130.15,120.47475244]
[1744656964892,4.55e-05,130.16,130.15,101.2564573]
[1744656969391,4.55e-05,130.16,130.15,120.47475244]
[1744656969985,0.0001,130.19,130.18,26.0]
[1744656970169,0.0001,130.19,130.18,82.9999545]
[1744656970566,0.0001,130.19,130.17,10.5730573]
[1744656972177,0.0001,130.19,130.17,18.2549573]
[1744656972575,0.0001,130.19,130.15,93.5730118]
[1744656972772,0.0001,130.19,130.15,82.9999545]
[1744656972979,0.0001,130.19,130.15,93.5730118]
[1744656973393,0.0001,130.19,130.15,101.2561118]
[1744656973590,0.0001,130.19,130.16,10.5730573]
[1744656974392,0.0001,130.19,130.17,10.5730573]
[1744656976395,0.0001,130.19,130.17,18.2552573]
[1744656979094,0.0001,130.19,130.17,7.6822]
[1744656979592,0.0001,130.19,130.17,18.2552573]
[1744656981875,0.0001,130.19,130.18,10.5730573]
[1744656982075,0.0001,130.19,130.18,112.5069838]
[1744656982275,0.0001,130.19,130.18,112.79130694]
[1744656983793,0.0001,130.19,130.18,120.47290694]
[1744656985392,0.0001,130.19,130.18,122.02210694]
[1744656985999,0.0001,130.19,130.18,125.82947152]
[1744656986195,0.0001,130.19,130.18,168.12170072]
[1744656987296,0.0001,130.19,130.18,125.82947152]
[1744656988896,0.0001,130.19,130.18,122.02210694]
[1744656991897,0.0001,130.2,130.19,82.9998545]
[1744656992102,0.0001,130.2,130.19,135.865141]
[1744656992403,0.0001,130.2,130.19,93.5729118]
[1744656992600,0.0001,130.2,130.19,112.79120694]
[1744656993500,0.0001,130.2,130.19,93.5729118]
[1744656994209,0.0001,130.2,130.19,101.2539118]
[1744657002814,0.0001,130.2,130.19,120.47220694]
[1744657009127,0.0001,130.2,130.19,162.76443614]
[1744657010525,0.0001,130.2,130.19,120.47220694]
[1744657020656,0.0001,130.2,130.19,90.6808545]
[1744657020811,0.0001,130.2,130.19,101.2539118]
[1744657021216,0.0001,130.2,130.19,120.47220694]
[1744657027633,0.03,130.26,130.23,0.28432314]
[1744657027832,0.03,130.26,130.25,29.79135244]
[1744657028417,0.03,130.26,130.25,11.14170358]
[1744657028618,0.03,130.26,130.25,10.5730573]
[1744657029027,0.03,130.26,130.25,18.2505573]
[1744657030518,0.03,130.26,130.25,21.11563603]
[1744657031314,0.03,130.26,130.25,10.54257873]
[1744657031519,0.03,130.26,130.25,21.11563603]
[1744657032542,0.03,130.26,130.25,104.11549053]
[1744657033240,0.03,130.26,130.25,85.86493323]
[1744657033449,6.5032,130.26,130.25,85.86493323]
[1744657034646,18.7319573,130.26,130.25,2.86507873]
[1744657034950,19.07613357,130.25,130.18,7.6814]
[1744657035148,10.5730573,130.2,130.17,90.6817545]
[1744657035444,10.5730573,130.19,130.16,11.02]
[1744657035636,10.5730573,130.19,130.15,10.5730573]
[1744657035835,6.4223,130.21,130.14,101.2567118]
[1744657035836,10.5730573,130.18,130.14,101.2567118]
[1744657036049,10.5730573,130.16,130.13,7.7474]
[1744657036244,10.5730573,130.19,130.14,10.5730573]
[1744657037944,10.5730573,130.18,130.14,18.2567573]
[1744657038952,10.5730573,130.17,130.14,7.6837]
[1744657039245,10.5730573,130.16,130.13,7.7473]
[1744657039647,10.5730573,130.18,130.13,18.3203573]
[1744657039844,10.5730573,130.18,130.14,10.5730573]
[1744657040232,1.5407,130.2,130.15,10.5730573]
[1744657040453,10.5730573,130.19,130.15,10.5730573]
[1744657040825,10.5730573,130.19,130.16,7.6828]
[1744657041045,1.5407,130.2,130.17,10.5730573]
[1744657041237,10.5730573,130.23,130.19,10.5730573]
[1744657042151,10.5730573,130.22,130.18,10.5730573]
[1744657042349,10.5730573,130.22,130.16,26.8899]
[1744657042552,10.5730573,130.18,130.15,7.6832]
[1744657043254,16.51475109,130.19,130.15,24.19795109]
[1744657043629,16.51475109,130.19,130.15,7.6832]
[1744657044026,16.51475109,130.18,130.15,7.6832]
[1744657044253,16.51475109,130.16,130.14,7.6837]
[1744657044447,16.51475109,130.17,130.14,7.6837]
[1744657045244,6.3771,130.18,130.14,24.19845109]
[1744657045442,6.3771,130.18,130.15,16.51475109]
[1744657046558,1.5063,130.19,130.15,16.51475109]
[1744657046941,18.02105109,130.19,130.15,16.51475109]
[1744657047140,18.02105109,130.19,130.15,99.51475109]
[1744657047345,18.02105109,130.19,130.16,7.6828]
[1744657047541,1.5063,130.19,130.16,7.6828]
[1744657047948,18.02105109,130.19,130.16,7.6828]
[1744657050154,16.51475109,130.2,130.16,24.19755109]
[1744657050664,16.51475109,130.2,130.16,7.6828]
[1744657050958,16.01475109,130.2,130.16,7.6828]
[1744657051358,6.4307,130.21,130.16,43.40465109]
[1744657051555,11.02,130.25,130.18,16.51475109]
[1744657051556,7.6931,130.25,130.18,16.51475109]
[1744657051755,16.51475109,130.23,130.19,7.681]
[1744657053057,16.51475109,130.22,130.18,24.19615109]
[1744657053250,16.51475109,130.2,130.17,7.6819]
[1744657054957,16.51475109,130.21,130.17,7.6819]
[1744657055841,16.51475109,130.21,130.17,24.19665109]
[1744657056038,26.32774886,130.24,130.17,24.19665109]
[1744657056243,16.51475109,130.21,130.17,24.19665109]
[1744657057359,7.6782,130.24,130.17,43.40225109]
[1744657057565,16.51475109,130.23,130.18,16.51475109]
[1744657057959,16.51475109,130.22,130.18,16.51475109]
[1744657058462,16.51475109,130.22,130.17,24.19665109]
[1744657060457,16.51475109,130.22,130.18,16.51475109]
[1744657061771,16.51475109,130.22,130.19,7.681]
[1744657063173,10.56516365,130.22,130.19,7.681]
[1744657063560,10.56516365,130.23,130.19,7.681]
[1744657064055,10.56516365,130.22,130.19,7.681]
[1744657065266,7.6931,130.25,130.19,18.24616365]
[1744657065487,10.56516365,130.23,130.19,7.681]
[1744657065978,10.56516365,130.24,130.19,18.24616365]
[1744657067687,10.56516365,130.23,130.19,18.24616365]
[1744657068064,10.56516365,130.23,130.19,7.681]
[1744657068479,10.56516365,130.23,130.18,10.56516365]
[1744657068666,10.56516365,130.21,130.18,7.6814]
[1744657069078,10.56516365,130.21,130.17,7.6822]
[1744657069480,10.56516365,130.21,130.17,18.24736365]
[1744657075885,18.24516365,130.21,130.17,7.6822]
[1744657076065,10.56516365,130.2,130.16,7.6825]
[1744657076273,42.2606546,130.2,130.17,2.82773584]
[1744657076489,10.56516365,130.18,130.17,2.82773584]
[1744657076876,10.56516365,130.18,130.15,7.6832]
[1744657077462,10.56516365,130.18,130.14,7.684]
[1744657078079,10.56516365,130.18,130.15,2.83313962]
[1744657078895,10.56516365,130.18,130.15,10.51643962]
[1744657079186,10.56516365,130.18,130.16,2.83313962]
[1744657079889,10.56516365,130.18,130.15,2.83313962]
[1744657080884,10.56516365,130.18,130.16,2.83313962]
[1744657081992,10.56516365,130.18,130.15,2.83313962]
[1744657082570,10.56516365,130.18,130.15,10.51633962]
[1744657083075,10.56516365,130.18,130.16,2.83313962]
[1744657085982,10.56516365,130.19,130.16,10.51583962]
[1744657086184,18.24626365,130.19,130.16,2.83313962]
[1744657086492,10.56516365,130.17,130.16,2.83313962]
[1744657087284,10.56516365,130.17,130.15,2.83313962]
[1744657087584,10.56516365,130.16,130.15,2.83313962]
[1744657088564,10.56516365,130.16,130.13,0.063]
[1744657088769,10.56516365,130.15,130.13,0.063]
[1744657090184,10.56516365,130.16,130.13,0.063]
[1744657091991,10.56516365,130.15,130.13,0.063]
[1744657092891,7.6793,130.22,130.15,0.14216157]
[1744657093084,24.6974,130.24,130.2,10.56516365]
[1744657093386,24.6974,130.24,130.21,10.56516365]
[1744657093387,18.6783,130.24,130.21,10.56516365]
[1744657093587,29.24346365,130.24,130.19,10.56516365]
[1744657093892,10.56516365,130.22,130.18,18.24646365]
[1744657094487,10.56516365,130.23,130.19,10.56516365]
[1744657094792,10.56516365,130.23,130.19,18.24606365]
[1744657094975,21.56516365,130.24,130.19,18.24606365]
[1744657095377,11.0,130.24,130.2,10.56516365]
[1744657095786,0.03,130.26,130.22,10.56516365]
[1744657095986,10.56516365,130.24,130.2,10.56516365]
[1744657097190,10.56516365,130.24,130.2,7.6803]
[1744657097979,8.13368471,130.26,130.21,10.56516365]
[1744657098295,10.56516365,130.25,130.2,18.24546365]
[1744657098484,10.56516365,130.24,130.2,18.24546365]
[1744657099085,7.7072,130.26,130.2,18.24546365]
[1744657099293,10.56516365,130.25,130.2,18.24546365]
[1744657099600,10.56516365,130.24,130.2,18.24546365]
[1744657101695,18.24366365,130.24,130.2,10.56516365]
[1744657101994,10.56516365,130.22,130.18,83.0]
[1744657102195,9.56516365,130.21,130.17,7.682]
[1744657102376,10.56516365,130.21,130.17,18.24716365]
[1744657102701,18.24516365,130.21,130.17,10.56516365]
[1744657102995,10.56516365,130.2,130.16,19.75176365]
[1744657103196,16.51208903,130.2,130.16,25.69868903]
[1744657103397,16.51208903,130.21,130.17,16.51208903]
[1744657103991,24.19198903,130.21,130.17,16.51208903]
[1744657104782,24.19198903,130.21,130.15,7.6831]
[1744657104783,16.51208903,130.18,130.15,7.6831]
[1744657105000,16.51208903,130.18,130.14,7.6837]
[1744657105701,16.51208903,130.19,130.15,16.51208903]
[1744657106901,16.51208903,130.19,130.16,7.6828]
[1744657107401,27.51208903,130.21,130.17,16.51208903]
[1744657107579,16.51208903,130.21,130.17,16.51208903]
[1744657107778,1.78566157,130.24,130.2,16.51208903]
[1744657107779,16.51208903,130.24,130.2,16.51208903]
[1744657108187,27.51208903,130.25,130.21,16.51208903]
[1744657108384,11.0,130.25,130.21,16.51208903]
[1744657108993,27.51208903,130.25,130.21,24.19178903]
[1744657109199,16.51208903,130.23,130.17,84.65136157]
[1744657109383,16.51208903,130.23,130.18,16.51208903]
[1744657109585,16.54208903,130.26,130.18,16.51208903]
[1744657109586,0.03,130.26,130.22,16.51208903]
[1744657109888,0.03,130.26,130.23,16.51208903]
[1744657110588,0.03,130.26,130.22,16.51208903]
[1744657111404,0.03,130.26,130.23,7.6787]
[1744657111796,0.03,130.26,130.23,24.19078903]
[1744657111986,0.03,130.26,130.23,7.6787]
[1744657115010,0.03,130.26,130.23,24.19078903]
[1744657117614,0.03,130.26,130.22,16.51208903]
[1744657118307,16.51208903,130.25,130.21,24.19198903]
[1744657119112,16.51208903,130.24,130.2,90.6801]
[1744657119309,16.51208903,130.23,130.19,16.51208903]
[1744657119695,16.51208903,130.23,130.2,7.6804]
[1744657119896,16.51208903,130.24,130.2,24.19248903]
[1744657120722,16.51208903,130.25,130.2,24.19248903]
[1744657121217,16.51208903,130.25,130.21,16.51208903]
[1744657121418,16.51208903,130.25,130.2,24.19248903]
[1744657121906,24.18978903,130.25,130.2,24.19248903]
[1744657123196,18.23899227,130.25,130.2,10.56129227]
[1744657124211,18.23899227,130.25,130.21,7.6799]
[1744657126409,18.23899227,130.25,130.21,10.56129227]
[1744657127135,7.7069,130.26,130.22,10.56129227]
[1744657127417,18.26819227,130.26,130.22,10.56129227]
[1744657127720,10.56129227,130.25,130.2,10.56129227]